Workbook

Sheet Rio@1604
C1: Units
A2: Income Statement | C2: Renovated | D2: =132-D3 -> 82
A3: Rio@1604 | C3: Classic | D3: 50
C4: Total | D4: =SUM(D2:D3) -> 132
A5: Account | B5: Account Name | C5: Jan 2025 | D5: Feb 2025 | E5: Mar 2025 | F5: Apr 2025 | G5: May 2025 | H5: Jun 2025 | I5: Jul 2025 | J5: Aug 2025 | K5: Sep 2025 | L5: Oct 2025 | M5: Nov 2025 | N5: Dec 2025 | O5: Total | Q5: Income Statement: GL Account Type | R5: Income Statement: Property | S5: Income Statement: Property Look-Up Code | T5: Income Statement: Unit Count | U5: Income Statement: Month 1 Change Sign | V5: Income Statement: Month 2 Change Sign | W5: Income Statement: Month 3 Change Sign | X5: Income Statement: Month 4 Change Sign | Y5: Income Statement: Month 5 Change Sign | Z5: Income Statement: Month 6 Change Sign | AA5: Income Statement: Month 7 Change Sign | AB5: Income Statement: Month 8 Change Sign | AC5: Income Statement: Month 9 Change Sign | AD5: Income Statement: Month 10 Change Sign | AE5: Income Statement: Month 11 Change Sign | AF5: Income Statement: Month 12 Change Sign | AG5: Income Statement: Month 13 Change Sign | AH5: Income Statement: Total Change Sign | AI5: T12 | AJ5: T6 | AL5: T3 | AM5: T1
A6: Revenue
A7: Rent Revenue
A8: 4102 | B8: Gross Potential Rent | C8: 194264 | D8: 188751 | E8: 174661 | F8: 174661 | G8: 174661 | H8: 174661 | I8: 174661 | J8: 174661 | K8: 174661 | L8: 174661 | M8: 174661 | N8: 173661 | O8: =SUM(C8:N8) -> 2128625 | Q8: 4 | R8: Rio@1604 | S8: RIO | U8: =IF(5 = Q8,#REF! * -1,#REF!) ->  | V8: =IF(5 = Q8, C8 * -1, C8) -> 194264 | W8: =IF(5 = Q8, D8 * -1, D8) -> 188751 | X8: =IF(5 = Q8, E8 * -1, E8) -> 174661 | Y8: =IF(5 = Q8, F8 * -1, F8) -> 174661 | Z8: =IF(5 = Q8, G8 * -1, G8) -> 174661 | AA8: =IF(5 = Q8, H8 * -1, H8) -> 174661 | AB8: =IF(5 = Q8, I8 * -1, I8) -> 174661 | AC8: =IF(5 = Q8, J8 * -1, J8) -> 174661 | AD8: =IF(5 = Q8, K8 * -1, K8) -> 174661 | AE8: =IF(5 = Q8, L8 * -1, L8) -> 174661 | AF8: =IF(5 = Q8, M8 * -1, M8) -> 174661 | AG8: =IF(5 = Q8, N8 * -1, N8) -> 173661 | AH8: =IF(5 = Q8, O8 * -1, O8) -> 2128625 | AI8: =O8 -> 2128625 | AJ8: =SUM(I8:N8)*2 -> 2093932 | AL8: =SUM(L8:N8)*4 -> 2091932 | AM8: =N8*12 -> 2083932
A9: 4103 | B9: Gain/(Loss) To Lease | C9: -16101.53 | D9: -19114.05 | E9: -5749.23 | F9: -3691.61 | G9: -3685.57 | H9: -3660.95 | I9: -4382.65 | J9: -4517.79 | K9: -4247.51 | L9: -4955.09 | M9: -5107.69 | N9: -5490.02 | O9: -80703.69 | Q9: 4 | R9: Rio@1604 | S9: RIO | U9: =IF(5 = Q9,#REF! * -1,#REF!) ->  | V9: -16101.53 | W9: -19114.05 | X9: -5749.23 | Y9: -3691.61 | Z9: -3685.57 | AA9: -3660.95 | AB9: -4382.65 | AC9: -4517.79 | AD9: -4247.51 | AE9: -4955.09 | AF9: -5107.69 | AG9: -5490.02 | AH9: -80703.69 | AI9: =O9 -> -80703.69 | AJ9: =SUM(I9:N9)*2 -> -57401.5 | AL9: =SUM(L9:N9)*4 -> -62211.2 | AM9: =N9*12 -> -65880.24
A10: 4104 | B10: Less: Vacancy | C10: -32074.36 | D10: -18072.28 | E10: -26392.7 | F10: -22583.03 | G10: -16380.13 | H10: -14953.33 | I10: -17109.2 | J10: -20426.29 | K10: -18868.57 | L10: -23235.65 | M10: -20636.57 | N10: -11804.84 | O10: -242536.95 | Q10: 4 | R10: Rio@1604 | S10: RIO | U10: =IF(5 = Q10,#REF! * -1,#REF!) ->  | V10: -32074.36 | W10: -18072.28 | X10: -26392.7 | Y10: -22583.03 | Z10: -16380.13 | AA10: -14953.33 | AB10: -17109.2 | AC10: -20426.29 | AD10: -18868.57 | AE10: -23235.65 | AF10: -20636.57 | AG10: -11804.84 | AH10: -242536.95 | AI10: -242536.95 | AJ10: -224162.24 | AL10: -222708.24 | AM10: -141658.08
A11: 4108 | B11: Less: Concessions | C11: -5451.48 | D11: -8054.03 | E11: -7966.92 | F11: -6604.47 | G11: -5200.64 | H11: -5833.87 | I11: -6957.18 | J11: -7655.4 | K11: -5866.68 | L11: -5556.24 | M11: -3810.69 | N11: -5722.25 | O11: -74679.85 | Q11: 4 | R11: Rio@1604 | S11: RIO | U11: =IF(5 = Q11,#REF! * -1,#REF!) ->  | V11: -5451.48 | W11: -8054.03 | X11: -7966.92 | Y11: -6604.47 | Z11: -5200.64 | AA11: -5833.87 | AB11: -6957.18 | AC11: -7655.4 | AD11: -5866.68 | AE11: -5556.24 | AF11: -3810.69 | AG11: -5722.25 | AH11: -74679.85 | AI11: -74679.85 | AJ11: -71136.88 | AL11: -60356.72 | AM11: -68667
B12: Rent Revenue | C12: =SUM(C8:C11) -> 140636.63 | D12: 143510.64 | E12: 134552.15 | F12: 141781.89 | G12: 149394.66 | H12: 150212.85 | I12: =SUM(I8:I11) -> 146211.97 | J12: 142061.52 | K12: 145678.24 | L12: 140914.02 | M12: 145106.05 | N12: =SUM(N8:N11) -> 150643.89 | O12: 1730704.51 | Q12: 4 | R12: =#REF! ->  | S12: =#REF! ->  | T12: =#REF! ->  | U12: =SUM(U8:U11) ->  | V12: 140636.63 | W12: 143510.64 | X12: 134552.15 | Y12: 141781.89 | Z12: 149394.66 | AA12: 150212.85 | AB12: 146211.97 | AC12: 142061.52 | AD12: 145678.24 | AE12: 140914.02 | AF12: 145106.05 | AG12: 150643.89 | AH12: 1730704.51 | AI12: 1730704.51 | AJ12: 1741231.38 | AL12: 1746655.84 | AM12: 1807726.68
A14: Other Revenue
A15: 4201 | B15: Utility Reimbursement | C15: 9686.83 | D15: 9568.05 | E15: 11729.9 | F15: 12907.2 | G15: 10451.1 | H15: 11980.42 | I15: 12325.57 | J15: 11943.37 | K15: 10222.44 | L15: 9950.11 | M15: 11775.96 | N15: 11629.22 | O15: =SUM(C15:N15) -> 134170.17 | Q15: 4 | R15: Rio@1604 | S15: RIO | U15: =IF(5 = Q15,#REF! * -1,#REF!) ->  | V15: =IF(5 = Q15, C15 * -1, C15) -> 9686.83 | W15: =IF(5 = Q15, D15 * -1, D15) -> 9568.05 | X15: =IF(5 = Q15, E15 * -1, E15) -> 11729.9 | Y15: =IF(5 = Q15, F15 * -1, F15) -> 12907.2 | Z15: =IF(5 = Q15, G15 * -1, G15) -> 10451.1 | AA15: =IF(5 = Q15, H15 * -1, H15) -> 11980.42 | AB15: =IF(5 = Q15, I15 * -1, I15) -> 12325.57 | AC15: =IF(5 = Q15, J15 * -1, J15) -> 11943.37 | AD15: =IF(5 = Q15, K15 * -1, K15) -> 10222.44 | AE15: =IF(5 = Q15, L15 * -1, L15) -> 9950.11 | AF15: =IF(5 = Q15, M15 * -1, M15) -> 11775.96 | AG15: =IF(5 = Q15, N15 * -1, N15) -> 11629.22 | AH15: =IF(5 = Q15, O15 * -1, O15) -> 134170.17 | AI15: =O15 -> 134170.17 | AJ15: =SUM(I15:N15)*2 -> 135693.34 | AL15: =SUM(L15:N15)*4 -> 133421.16 | AM15: =N15*12 -> 139550.64
A16: 4202 | B16: Trash Income | C16: 1442.01 | D16: 1516.63 | E16: 1769.77 | F16: 1769.77 | G16: 908.22 | H16: 988.94 | I16: 1019.4 | J16: 1053.56 | K16: 1065.53 | L16: 1075.47 | M16: 1084.1 | N16: 1152.09 | O16: 14845.49 | Q16: 4 | R16: Rio@1604 | S16: RIO | U16: =IF(5 = Q16,#REF! * -1,#REF!) ->  | V16: 1442.01 | W16: 1516.63 | X16: 1769.77 | Y16: 1769.77 | Z16: 908.22 | AA16: 988.94 | AB16: 1019.4 | AC16: 1053.56 | AD16: 1065.53 | AE16: 1075.47 | AF16: 1084.1 | AG16: 1152.09 | AH16: 14845.49 | AI16: 14845.49 | AJ16: 12900.3 | AL16: 13246.64 | AM16: 13825.08
A17: 4203 | B17: Pest Control Income | C17: 729 | D17: 764.33 | E17: 877.93 | F17: 877.93 | G17: 455.36 | H17: 495.44 | I17: 509.71 | J17: 501.78 | K17: 536.14 | L17: 544.12 | M17: 550.5 | N17: 592.39 | O17: 7434.63 | Q17: 4 | R17: Rio@1604 | S17: RIO | U17: =IF(5 = Q17,#REF! * -1,#REF!) ->  | V17: 729 | W17: 764.33 | X17: 877.93 | Y17: 877.93 | Z17: 455.36 | AA17: 495.44 | AB17: 509.71 | AC17: 501.78 | AD17: 536.14 | AE17: 544.12 | AF17: 550.5 | AG17: 592.39 | AH17: 7434.63 | AI17: 7434.63 | AJ17: 6469.28 | AL17: 6748.04 | AM17: 7108.68
A18: 4204 | B18: Cable/Internet Fee | C18: 6159.82 | D18: 7142.64 | E18: 6733.27 | F18: 6886.18 | G18: 7151.32 | H18: 7403.46 | I18: 7494.27 | J18: 7410.32 | K18: 7586.13 | L18: 7623.44 | M18: 7835.27 | N18: 8401.78 | O18: 87827.9 | Q18: 4 | R18: Rio@1604 | S18: RIO | U18: =IF(5 = Q18,#REF! * -1,#REF!) ->  | V18: 6159.82 | W18: 7142.64 | X18: 6733.27 | Y18: 6886.18 | Z18: 7151.32 | AA18: 7403.46 | AB18: 7494.27 | AC18: 7410.32 | AD18: 7586.13 | AE18: 7623.44 | AF18: 7835.27 | AG18: 8401.78 | AH18: 87827.9 | AI18: 87827.9 | AJ18: 92702.42 | AL18: 95441.96 | AM18: 100821.36
A19: 4206 | B19: Administrative & Application Fee | C19: 3650 | D19: 2850 | E19: 2300 | F19: 1250 | G19: 2900 | H19: 2899 | I19: 1200 | J19: 651 | K19: 1550 | L19: 750 | M19: 4950 | N19: 2500 | O19: 27450 | Q19: 4 | R19: Rio@1604 | S19: RIO | U19: =IF(5 = Q19,#REF! * -1,#REF!) ->  | V19: 3650 | W19: 2850 | X19: 2300 | Y19: 1250 | Z19: 2900 | AA19: 2899 | AB19: 1200 | AC19: 651 | AD19: 1550 | AE19: 750 | AF19: 4950 | AG19: 2500 | AH19: 27450 | AI19: 27450 | AJ19: 23202 | AL19: 32800 | AM19: 30000
A20: 4207 | B20: Pet Income | C20: 465 | D20: 365 | E20: 454.03 | F20: 906.45 | G20: 423.38 | H20: 300 | I20: 666.13 | J20: 250 | K20: 150 | L20: 139.52 | M20: 800 | N20: 550 | O20: 5469.51 | Q20: 4 | R20: Rio@1604 | S20: RIO | U20: =IF(5 = Q20,#REF! * -1,#REF!) ->  | V20: 465 | W20: 365 | X20: 454.03 | Y20: 906.45 | Z20: 423.38 | AA20: 300 | AB20: 666.13 | AC20: 250 | AD20: 150 | AE20: 139.52 | AF20: 800 | AG20: 550 | AH20: 5469.51 | AI20: 5469.51 | AJ20: 5111.3 | AL20: 5958.08 | AM20: 6600
A21: 4211 | B21: Washer & Dryer Fee | C21: 2010.65 | D21: 2010.65 | E21: 2010.65 | F21: 2010.65 | G21: 2143.98 | H21: 2342.64 | I21: 1602.63 | J21: 1643.71 | K21: 1388.42 | L21: 1630.45 | M21: 1818.44 | N21: 2075.9 | O21: 22688.77 | Q21: 4 | R21: Rio@1604 | S21: RIO | U21: =IF(5 = Q21,#REF! * -1,#REF!) ->  | V21: 2010.65 | W21: 2010.65 | X21: 2010.65 | Y21: 2010.65 | Z21: 2143.98 | AA21: 2342.64 | AB21: 1602.63 | AC21: 1643.71 | AD21: 1388.42 | AE21: 1630.45 | AF21: 1818.44 | AG21: 2075.9 | AH21: 22688.77 | AI21: 22688.77 | AJ21: 20319.1 | AL21: 22099.16 | AM21: 24910.8
A22: 4212 | B22: Community Liability Income | C22: 1499.43 | D22: 1636.89 | E22: 1539.91 | F22: 1610.32 | G22: 1681.88 | H22: 1733.85 | I22: 1723.47 | J22: 1659.8 | K22: 1715.38 | L22: 1703.21 | M22: 1738.65 | N22: 1818.14 | O22: 20060.93 | Q22: 4 | R22: Rio@1604 | S22: RIO | U22: =IF(5 = Q22,#REF! * -1,#REF!) ->  | V22: 1499.43 | W22: 1636.89 | X22: 1539.91 | Y22: 1610.32 | Z22: 1681.88 | AA22: 1733.85 | AB22: 1723.47 | AC22: 1659.8 | AD22: 1715.38 | AE22: 1703.21 | AF22: 1738.65 | AG22: 1818.14 | AH22: 20060.93 | AI22: 20060.93 | AJ22: 20717.3 | AL22: 21040 | AM22: 21817.68
A23: 4213 | B23: Credit Builder Fee | C23: 372.72 | D23: 429.95 | E23: 504.44 | F23: 567.02 | G23: 644.54 | H23: 814.59 | I23: 814.59 | J23: 814.59 | K23: 832.49 | L23: 868.29 | M23: 886.05 | N23: 895 | O23: 8444.27 | Q23: 4 | R23: Rio@1604 | S23: RIO | U23: =IF(5 = Q23,#REF! * -1,#REF!) ->  | V23: 372.72 | W23: 429.95 | X23: 504.44 | Y23: 567.02 | Z23: 644.54 | AA23: 814.59 | AB23: 814.59 | AC23: 814.59 | AD23: 832.49 | AE23: 868.29 | AF23: 886.05 | AG23: 895 | AH23: 8444.27 | AI23: 8444.27 | AJ23: 10222.02 | AL23: 10597.36 | AM23: 10740
A24: 4214 | B24: Damages & Cleaning Fee | C24: 1400 | D24: 0 | E24: 1625 | F24: 3935 | G24: 1985 | H24: 3675 | I24: 1119 | J24: 70 | K24: 1035 | L24: 1090 | M24: 335 | N24: 300 | O24: 16569 | Q24: 4 | R24: Rio@1604 | S24: RIO | U24: =IF(5 = Q24,#REF! * -1,#REF!) ->  | V24: 1400 | W24: 0 | X24: 1625 | Y24: 3935 | Z24: 1985 | AA24: 3675 | AB24: 1119 | AC24: 70 | AD24: 1035 | AE24: 1090 | AF24: 335 | AG24: 300 | AH24: 16569 | AI24: 16569 | AJ24: 7898 | AL24: 6900 | AM24: 3600
A25: 4215 | B25: NSF Fee | C25: 50 | D25: 400 | E25: 0 | F25: 0 | G25: 0 | H25: 0 | I25: 981.75 | J25: 150 | K25: 100 | L25: 50 | M25: 0 | N25: 0 | O25: 1731.75 | Q25: 4 | R25: Rio@1604 | S25: RIO | U25: =IF(5 = Q25,#REF! * -1,#REF!) ->  | V25: 50 | W25: 400 | X25: 0 | Y25: 0 | Z25: 0 | AA25: 0 | AB25: 981.75 | AC25: 150 | AD25: 100 | AE25: 50 | AF25: 0 | AG25: 0 | AH25: 1731.75 | AI25: 1731.75 | AJ25: 2563.5 | AL25: 200 | AM25: 0
A26: 4216 | B26: Late Fee | C26: 3768.9 | D26: 4258.55 | E26: 3002.2 | F26: 3311.5 | G26: 3141.5 | H26: 4992.3 | I26: 4912.3 | J26: 3653.1 | K26: 5240.3 | L26: 4833.1 | M26: 5014.7 | N26: 5874.5 | O26: 52002.95 | Q26: 4 | R26: Rio@1604 | S26: RIO | U26: =IF(5 = Q26,#REF! * -1,#REF!) ->  | V26: 3768.9 | W26: 4258.55 | X26: 3002.2 | Y26: 3311.5 | Z26: 3141.5 | AA26: 4992.3 | AB26: 4912.3 | AC26: 3653.1 | AD26: 5240.3 | AE26: 4833.1 | AF26: 5014.7 | AG26: 5874.5 | AH26: 52002.95 | AI26: 52002.95 | AJ26: 59056 | AL26: 62889.2 | AM26: 70494
A27: 4217 | B27: Month to Month Fee | C27: 841.94 | D27: 779.03 | E27: 745.16 | F27: 812.9 | G27: 444.84 | H27: 640.81 | I27: 532.1 | J27: 300 | K27: 300 | L27: 546.76 | M27: 522.75 | N27: 300 | O27: 6766.29 | Q27: 4 | R27: Rio@1604 | S27: RIO | U27: =IF(5 = Q27,#REF! * -1,#REF!) ->  | V27: 841.94 | W27: 779.03 | X27: 745.16 | Y27: 812.9 | Z27: 444.84 | AA27: 640.81 | AB27: 532.1 | AC27: 300 | AD27: 300 | AE27: 546.76 | AF27: 522.75 | AG27: 300 | AH27: 6766.29 | AI27: 6766.29 | AJ27: 5003.22 | AL27: 5478.04 | AM27: 3600
A28: 4218 | B28: Lease Buy Out & Transfer Fee | C28: 2100 | D28: 0 | E28: 0 | F28: 1232 | G28: 2864 | H28: 0 | I28: 2920 | J28: 0 | K28: 2398 | L28: 0 | M28: 0 | N28: 0 | O28: 11514 | Q28: 4 | R28: Rio@1604 | S28: RIO | U28: =IF(5 = Q28,#REF! * -1,#REF!) ->  | V28: 2100 | W28: 0 | X28: 0 | Y28: 1232 | Z28: 2864 | AA28: 0 | AB28: 2920 | AC28: 0 | AD28: 2398 | AE28: 0 | AF28: 0 | AG28: 0 | AH28: 11514 | AI28: 11514 | AJ28: 10636 | AL28: 0 | AM28: 0
A29: 4220 | B29: Attorney's Fee | C29: 429 | D29: -319 | E29: 978 | F29: 0 | G29: 0 | H29: 0 | I29: 0 | J29: 0 | K29: 0 | L29: 11 | M29: 0 | N29: 0 | O29: 1099 | Q29: 4 | R29: Rio@1604 | S29: RIO | U29: =IF(5 = Q29,#REF! * -1,#REF!) ->  | V29: 429 | W29: -319 | X29: 978 | Y29: 0 | Z29: 0 | AA29: 0 | AB29: 0 | AC29: 0 | AD29: 0 | AE29: 11 | AF29: 0 | AG29: 0 | AH29: 1099 | AI29: 1099 | AJ29: 22 | AL29: 44 | AM29: 0
A30: 4221 | B30: Interest on Bank Accounts | C30: 845.35 | D30: 561.31 | E30: 441.52 | F30: 291.39 | G30: 350.43 | H30: 155.42 | I30: 105.25 | J30: 244.62 | K30: 0 | L30: 0 | M30: 0 | N30: 0 | O30: 2995.29 | Q30: 4 | R30: Rio@1604 | S30: RIO | U30: =IF(5 = Q30,#REF! * -1,#REF!) ->  | V30: 845.35 | W30: 561.31 | X30: 441.52 | Y30: 291.39 | Z30: 350.43 | AA30: 155.42 | AB30: 105.25 | AC30: 244.62 | AD30: 0 | AE30: 0 | AF30: 0 | AG30: 0 | AH30: 2995.29 | AI30: 2995.29 | AJ30: 699.74 | AL30: 0 | AM30: 0
A31: 4227 | B31: Deposit Alternative | C31: 353.75 | D31: 186.5 | E31: 248 | F31: 187.75 | G31: 191.75 | H31: 227 | I31: 227 | J31: 156.81 | K31: 232.43 | L31: 149.12 | M31: 131.99 | N31: 52.8 | O31: 2344.9 | Q31: 4 | R31: Rio@1604 | S31: RIO | U31: =IF(5 = Q31,#REF! * -1,#REF!) ->  | V31: 353.75 | W31: 186.5 | X31: 248 | Y31: 187.75 | Z31: 191.75 | AA31: 227 | AB31: 227 | AC31: 156.81 | AD31: 232.43 | AE31: 149.12 | AF31: 131.99 | AG31: 52.8 | AH31: 2344.9 | AI31: 2344.9 | AJ31: 1900.3 | AL31: 1335.64 | AM31: 633.6
B32: Other Revenue | C32: =SUM(C15:C31) -> 35804.4 | D32: 32150.53 | E32: 34959.78 | F32: 38556.06 | G32: 35737.3 | H32: 38648.87 | I32: =SUM(I15:I31) -> 38153.17 | J32: 30502.66 | K32: 34352.26 | L32: 30964.59 | M32: 37443.41 | N32: =SUM(N15:N31) -> 36141.82 | O32: 423414.85 | Q32: 4 | R32: =R31 -> Rio@1604 | S32: =S31 -> RIO | T32: =T31 -> 0 | U32: =SUM(U15:U31) ->  | V32: 35804.4 | W32: 32150.53 | X32: 34959.78 | Y32: 38556.06 | Z32: 35737.3 | AA32: 38648.87 | AB32: 38153.17 | AC32: 30502.66 | AD32: 34352.26 | AE32: 30964.59 | AF32: 37443.41 | AG32: 36141.82 | AH32: 423414.85 | AI32: 423414.85 | AJ32: 415115.82 | AL32: 418199.28 | AM32: 433701.84
B34: Revenue | C34: =C32+C12 -> 176441.03 | D34: 175661.17 | E34: 169511.93 | F34: 180337.95 | G34: 185131.96 | H34: 188861.72 | I34: 184365.14 | J34: 172564.18 | K34: 180030.5 | L34: 171878.61 | M34: 182549.46 | N34: =N32+N12 -> 186785.71 | O34: 2154119.36 | Q34: 4 | R34: =R31 -> Rio@1604 | S34: =S31 -> RIO | T34: =T31 -> 0 | U34: =SUM(U8:U11)+SUM(U15:U31) ->  | V34: 176441.03 | W34: 175661.17 | X34: 169511.93 | Y34: 180337.95 | Z34: 185131.96 | AA34: 188861.72 | AB34: 184365.14 | AC34: 172564.18 | AD34: 180030.5 | AE34: 171878.61 | AF34: 182549.46 | AG34: 186785.71 | AH34: 2154119.36 | AI34: =O34 -> 2154119.36 | AJ34: =SUM(I34:N34)*2 -> 2156347.2 | AL34: =SUM(L34:N34)*4 -> 2164855.12 | AM34: =N34*12 -> 2241428.52
A36: Operating Expenses
A37: Payroll Expense
A38: 5199 | B38: Management & Leasing Salaries | C38: 7829.23 | D38: 8128.99 | E38: 8393.69 | F38: 8541.9 | G38: 8650.29 | H38: 8531.54 | I38: 7562.43 | J38: 9171.66 | K38: 7930.699 | L38: 8511.02 | M38: 8511.02 | N38: 8334.78 | O38: =SUM(C38:N38) -> 100097.249 | Q38: 5 | R38: Rio@1604 | S38: RIO | U38: =IF(5 = Q38,#REF! * -1,#REF!) ->  | V38: =IF(5 = Q38, C38 * -1, C38) -> -7829.23 | W38: =IF(5 = Q38, D38 * -1, D38) -> -8128.99 | X38: =IF(5 = Q38, E38 * -1, E38) -> -8393.69 | Y38: =IF(5 = Q38, F38 * -1, F38) -> -8541.9 | Z38: =IF(5 = Q38, G38 * -1, G38) -> -8650.29 | AA38: =IF(5 = Q38, H38 * -1, H38) -> -8531.54 | AB38: =IF(5 = Q38, I38 * -1, I38) -> -7562.43 | AC38: =IF(5 = Q38, J38 * -1, J38) -> -9171.66 | AD38: =IF(5 = Q38, K38 * -1, K38) -> -7930.699 | AE38: =IF(5 = Q38, L38 * -1, L38) -> -8511.02 | AF38: =IF(5 = Q38, M38 * -1, M38) -> -8511.02 | AG38: =IF(5 = Q38, N38 * -1, N38) -> -8334.78 | AH38: =IF(5 = Q38, O38 * -1, O38) -> -100097.249 | AI38: =O38 -> 100097.249 | AJ38: =SUM(I38:N38)*2 -> 100043.218 | AL38: =SUM(L38:N38)*4 -> 101427.28 | AM38: =N38*12 -> 100017.36
A39: 5198 | B39: Maintenance Salaries | C39: 4179.16 | D39: 4372.125 | E39: 4037.26 | F39: 4694.39 | G39: 5600 | H39: 5600 | I39: 6895.693 | J39: 6809.453 | K39: 7466.585 | L39: 7782.69 | M39: 7782.69 | N39: 7359.0075 | O39: 72579.0535 | Q39: 5 | R39: Rio@1604 | S39: RIO | U39: =IF(5 = Q39,#REF! * -1,#REF!) ->  | V39: -4179.16 | W39: -4372.125 | X39: -4037.26 | Y39: -4694.39 | Z39: -5600 | AA39: -5600 | AB39: -6895.693 | AC39: -6809.453 | AD39: -7466.585 | AE39: -7782.69 | AF39: -7782.69 | AG39: -7359.0075 | AH39: -72579.0535 | AI39: 72579.0535 | AJ39: 88192.237 | AL39: 91697.55 | AM39: 88308.09
A40: 5109 | B40: Benefits | C40: 686.24 | D40: 686.24 | E40: 686.24 | F40: 686.24 | G40: 686.24 | H40: 686.24 | I40: 686.24 | J40: 1125.39 | K40: 1125.39 | L40: 1563.84 | M40: 1563.84 | N40: 1541.89 | O40: 11724.03 | Q40: 5 | R40: Rio@1604 | S40: RIO | U40: =IF(5 = Q40,#REF! * -1,#REF!) ->  | V40: -686.24 | W40: -686.24 | X40: -686.24 | Y40: -686.24 | Z40: -686.24 | AA40: -686.24 | AB40: -686.24 | AC40: -1125.39 | AD40: -1125.39 | AE40: -1563.84 | AF40: -1563.84 | AG40: -1541.89 | AH40: -11724.03 | AI40: 11724.03 | AJ40: 15213.18 | AL40: 18678.28 | AM40: 18502.68
A41: 5110 | B41: Payroll Taxes | C41: 1543.76 | D41: 1543.76 | E41: 1543.76 | F41: 1695.85 | G41: 1624.01 | H41: 1624.01 | I41: 1399.56 | J41: 1339.6 | K41: 1566.27 | L41: 1310.88 | M41: 1310.88 | N41: 1413.21 | O41: 17915.55 | Q41: 5 | R41: Rio@1604 | S41: RIO | U41: =IF(5 = Q41,#REF! * -1,#REF!) ->  | V41: -1543.76 | W41: -1543.76 | X41: -1543.76 | Y41: -1695.85 | Z41: -1624.01 | AA41: -1624.01 | AB41: -1399.56 | AC41: -1339.6 | AD41: -1566.27 | AE41: -1310.88 | AF41: -1310.88 | AG41: -1413.21 | AH41: -17915.55 | AI41: 17915.55 | AJ41: 16680.8 | AL41: 16139.88 | AM41: 16958.52
B42: Payroll Expense | C42: =SUM(C38:C41) -> 14238.39 | D42: =SUM(D38:D41) -> 14731.115 | E42: =SUM(E38:E41) -> 14660.95 | F42: =SUM(F38:F41) -> 15618.38 | G42: =SUM(G38:G41) -> 16560.54 | H42: =SUM(H38:H41) -> 16441.79 | I42: =SUM(I38:I41) -> 16543.923 | J42: =SUM(J38:J41) -> 18446.103 | K42: =SUM(K38:K41) -> 18088.944 | L42: 19168.43 | M42: 19168.43 | N42: =SUM(N38:N41) -> 18648.8875 | O42: 202315.8825 | Q42: 5 | R42: =#REF! ->  | S42: =#REF! ->  | T42: =#REF! ->  | U42: =SUM(U38:U41) ->  | V42: -14238.39 | W42: -14731.115 | X42: -14660.95 | Y42: -15618.38 | Z42: -16560.54 | AA42: -16441.79 | AB42: -16543.923 | AC42: -18446.103 | AD42: -18088.944 | AE42: -19168.43 | AF42: -19168.43 | AG42: -18648.8875 | AH42: -202315.8825 | AI42: 202315.8825 | AJ42: 220129.435 | AL42: 227942.99 | AM42: 223786.65
A44: Utility Expense
A45: 5201 | B45: Electricity | C45: 2298.918272 | D45: 2831.66 | E45: 2818.42 | F45: 2818.42 | G45: 2830.39 | H45: 2830.39 | I45: 2680.25 | J45: 2419 | K45: 2791.373333 | L45: 3907.79 | M45: 942.82 | N45: 1302.88 | O45: =SUM(C45:N45) -> 30472.3116 | Q45: 5 | R45: Rio@1604 | S45: RIO | U45: =IF(5 = Q45,#REF! * -1,#REF!) ->  | V45: =IF(5 = Q45, C45 * -1, C45) -> -2298.918272 | W45: =IF(5 = Q45, D45 * -1, D45) -> -2831.66 | X45: =IF(5 = Q45, E45 * -1, E45) -> -2818.42 | Y45: =IF(5 = Q45, F45 * -1, F45) -> -2818.42 | Z45: =IF(5 = Q45, G45 * -1, G45) -> -2830.39 | AA45: =IF(5 = Q45, H45 * -1, H45) -> -2830.39 | AB45: =IF(5 = Q45, I45 * -1, I45) -> -2680.25 | AC45: =IF(5 = Q45, J45 * -1, J45) -> -2419 | AD45: =IF(5 = Q45, K45 * -1, K45) -> -2791.373333 | AE45: =IF(5 = Q45, L45 * -1, L45) -> -3907.79 | AF45: =IF(5 = Q45, M45 * -1, M45) -> -942.82 | AG45: =IF(5 = Q45, N45 * -1, N45) -> -1302.88 | AH45: =IF(5 = Q45, O45 * -1, O45) -> -30472.3116 | AI45: =O45 -> 30472.3116 | AJ45: =SUM(I45:N45)*2 -> 28088.22667 | AL45: =SUM(L45:N45)*4 -> 24613.96 | AM45: =N45*12 -> 15634.56
A46: 5202 | B46: Water & Sewer | C46: 9706.015048 | D46: 10369.01 | E46: 10369.01 | F46: 10369.01 | G46: 11509.28 | H46: 11509.28 | I46: 10802.54 | J46: 9062.82 | K46: 9062.82 | L46: 9062.82 | M46: 9062.82 | N46: 11321.73 | O46: =SUM(C46:N46) -> 122207.155 | Q46: 5 | R46: Rio@1604 | S46: RIO | U46: =IF(5 = Q46,#REF! * -1,#REF!) ->  | V46: =IF(5 = Q46, C46 * -1, C46) -> -9706.015048 | W46: =IF(5 = Q46, D46 * -1, D46) -> -10369.01 | X46: =IF(5 = Q46, E46 * -1, E46) -> -10369.01 | Y46: =IF(5 = Q46, F46 * -1, F46) -> -10369.01 | Z46: =IF(5 = Q46, G46 * -1, G46) -> -11509.28 | AA46: =IF(5 = Q46, H46 * -1, H46) -> -11509.28 | AB46: =IF(5 = Q46, I46 * -1, I46) -> -10802.54 | AC46: =IF(5 = Q46, J46 * -1, J46) -> -9062.82 | AD46: =IF(5 = Q46, K46 * -1, K46) -> -9062.82 | AE46: =IF(5 = Q46, L46 * -1, L46) -> -9062.82 | AF46: =IF(5 = Q46, M46 * -1, M46) -> -9062.82 | AG46: =IF(5 = Q46, N46 * -1, N46) -> -11321.73 | AH46: =IF(5 = Q46, O46 * -1, O46) -> -122207.155 | AI46: 122207.155 | AJ46: 116751.1 | AL46: 117789.48 | AM46: 135860.76
A47: 5204 | B47: Trash Removal | C47: 2300 | D47: 2300 | E47: 2300 | F47: 2300 | G47: 2300 | H47: 2300 | I47: 2677.33 | J47: 2677.33 | K47: 2677.33 | L47: 4432.25 | M47: 3854.42 | N47: 4306.35 | O47: =SUM(C47:N47) -> 34425.01 | Q47: 5 | R47: Rio@1604 | S47: RIO | U47: =IF(5 = Q47,#REF! * -1,#REF!) ->  | V47: =IF(5 = Q47, C47 * -1, C47) -> -2300 | W47: =IF(5 = Q47, D47 * -1, D47) -> -2300 | X47: =IF(5 = Q47, E47 * -1, E47) -> -2300 | Y47: =IF(5 = Q47, F47 * -1, F47) -> -2300 | Z47: =IF(5 = Q47, G47 * -1, G47) -> -2300 | AA47: =IF(5 = Q47, H47 * -1, H47) -> -2300 | AB47: =IF(5 = Q47, I47 * -1, I47) -> -2677.33 | AC47: =IF(5 = Q47, J47 * -1, J47) -> -2677.33 | AD47: =IF(5 = Q47, K47 * -1, K47) -> -2677.33 | AE47: =IF(5 = Q47, L47 * -1, L47) -> -4432.25 | AF47: =IF(5 = Q47, M47 * -1, M47) -> -3854.42 | AG47: =IF(5 = Q47, N47 * -1, N47) -> -4306.35 | AH47: =IF(5 = Q47, O47 * -1, O47) -> -34425.01 | AI47: 34425.01 | AJ47: 41250.02 | AL47: 50372.08 | AM47: 51676.2
B48: Utility Expense | C48: =SUM(C45:C47) -> 14304.93332 | D48: 15500.67 | E48: 15487.43 | F48: 15487.43 | G48: 16639.67 | H48: 16639.67 | I48: =SUM(I45:I47) -> 16160.12 | J48: 14159.15 | K48: 14531.52333 | L48: 17402.86 | M48: 13860.06 | N48: =SUM(N45:N47) -> 16930.96 | O48: 187104.4767 | Q48: 5 | R48: =R47 -> Rio@1604 | S48: =S47 -> RIO | T48: =T47 -> 0 | U48: =SUM(U45:U47) ->  | V48: -14304.93332 | W48: -15500.67 | X48: -15487.43 | Y48: -15487.43 | Z48: -16639.67 | AA48: -16639.67 | AB48: -16160.12 | AC48: -14159.15 | AD48: -14531.52333 | AE48: -17402.86 | AF48: -13860.06 | AG48: -16930.96 | AH48: -187104.4767 | AI48: 187104.4767 | AJ48: 186089.3467 | AL48: 192775.52 | AM48: 203171.52
A50: General Repairs AND Maintenance Expense
A51: 5301 | B51: HVAC Repair | C51: 0 | D51: 152.04 | E51: 0 | F51: 0 | G51: 188.9 | H51: 0 | I51: 0 | J51: 0 | K51: 0 | L51: 173.27 | M51: 0 | N51: 0 | O51: =SUM(C51:N51) -> 514.21 | Q51: 5 | R51: Rio@1604 | S51: RIO | U51: =IF(5 = Q51,#REF! * -1,#REF!) ->  | V51: =IF(5 = Q51, C51 * -1, C51) -> 0 | W51: =IF(5 = Q51, D51 * -1, D51) -> -152.04 | X51: =IF(5 = Q51, E51 * -1, E51) -> 0 | Y51: =IF(5 = Q51, F51 * -1, F51) -> 0 | Z51: =IF(5 = Q51, G51 * -1, G51) -> -188.9 | AA51: =IF(5 = Q51, H51 * -1, H51) -> 0 | AB51: =IF(5 = Q51, I51 * -1, I51) -> 0 | AC51: =IF(5 = Q51, J51 * -1, J51) -> 0 | AD51: =IF(5 = Q51, K51 * -1, K51) -> 0 | AE51: =IF(5 = Q51, L51 * -1, L51) -> -173.27 | AF51: =IF(5 = Q51, M51 * -1, M51) -> 0 | AG51: =IF(5 = Q51, N51 * -1, N51) -> 0 | AH51: =IF(5 = Q51, O51 * -1, O51) -> -514.21 | AI51: =O51 -> 514.21 | AJ51: =SUM(I51:N51)*2 -> 346.54 | AL51: =SUM(L51:N51)*4 -> 693.08 | AM51: =N51*12 -> 0
A52: 5302 | B52: Plumbing Repair | C52: 348.57 | D52: 288.21 | E52: 11.89 | F52: 0 | G52: 277 | H52: 0 | I52: 0 | J52: 350.73 | K52: 0 | L52: 311.71 | M52: 823.55 | N52: 295 | O52: 2706.66 | Q52: 5 | R52: Rio@1604 | S52: RIO | U52: =IF(5 = Q52,#REF! * -1,#REF!) ->  | V52: -348.57 | W52: -288.21 | X52: -11.89 | Y52: 0 | Z52: -277 | AA52: 0 | AB52: 0 | AC52: -350.73 | AD52: 0 | AE52: -311.71 | AF52: -823.55 | AG52: -295 | AH52: -2706.66 | AI52: 2706.66 | AJ52: 3561.98 | AL52: 5721.04 | AM52: 3540
A53: 5303 | B53: Electrical & Lighting Repair | C53: 0 | D53: 277.78 | E53: 0 | F53: 0 | G53: 301.37 | H53: 0 | I53: 0 | J53: 0 | K53: 0 | L53: 0 | M53: 0 | N53: 0 | O53: 579.15 | Q53: 5 | R53: Rio@1604 | S53: RIO | U53: =IF(5 = Q53,#REF! * -1,#REF!) ->  | V53: 0 | W53: -277.78 | X53: 0 | Y53: 0 | Z53: -301.37 | AA53: 0 | AB53: 0 | AC53: 0 | AD53: 0 | AE53: 0 | AF53: 0 | AG53: 0 | AH53: -579.15 | AI53: 579.15 | AJ53: 0 | AL53: 0 | AM53: 0
A54: 5304 | B54: Pool Expense | C54: 0 | D54: 461.09 | E54: 0 | F54: 0 | G54: 508.76 | H54: 0 | I54: 33.56 | J54: 247.24 | K54: 0 | L54: 392.7 | M54: 63.13 | N54: 555.12 | O54: 2261.6 | Q54: 5 | R54: Rio@1604 | S54: RIO | U54: =IF(5 = Q54,#REF! * -1,#REF!) ->  | V54: 0 | W54: -461.09 | X54: 0 | Y54: 0 | Z54: -508.76 | AA54: 0 | AB54: -33.56 | AC54: -247.24 | AD54: 0 | AE54: -392.7 | AF54: -63.13 | AG54: -555.12 | AH54: -2261.6 | AI54: 2261.6 | AJ54: 2583.5 | AL54: 4043.8 | AM54: 6661.44
A55: 5305 | B55: Landscaping Expense | C55: 2050 | D55: 2050 | E55: 2050 | F55: 2050 | G55: 2050 | H55: 2050 | I55: 2050 | J55: 2050 | K55: 2050 | L55: 0 | M55: 32.37 | N55: 0 | O55: 18482.37 | Q55: 5 | R55: Rio@1604 | S55: RIO | U55: =IF(5 = Q55,#REF! * -1,#REF!) ->  | V55: -2050 | W55: -2050 | X55: -2050 | Y55: -2050 | Z55: -2050 | AA55: -2050 | AB55: -2050 | AC55: -2050 | AD55: -2050 | AE55: 0 | AF55: -32.37 | AG55: 0 | AH55: -18482.37 | AI55: 18482.37 | AJ55: 12364.74 | AL55: 129.48 | AM55: 0
A56: 5306 | B56: Window & Door Repair | C56: 0 | D56: 116.76 | E56: 0 | F56: 0 | G56: 0 | H56: 0 | I56: 0 | J56: 0 | K56: 0 | L56: 0 | M56: 113.59 | N56: 0 | O56: 230.35 | Q56: 5 | R56: Rio@1604 | S56: RIO | U56: =IF(5 = Q56,#REF! * -1,#REF!) ->  | V56: 0 | W56: -116.76 | X56: 0 | Y56: 0 | Z56: 0 | AA56: 0 | AB56: 0 | AC56: 0 | AD56: 0 | AE56: 0 | AF56: -113.59 | AG56: 0 | AH56: -230.35 | AI56: 230.35 | AJ56: 227.18 | AL56: 454.36 | AM56: 0
A57: 5307 | B57: Appliance Repair | C57: 173.59 | D57: 528.46 | E57: 0 | F57: 0 | G57: 522.47 | H57: 0 | I57: 0 | J57: 0 | K57: 0 | L57: 0 | M57: 0 | N57: 0 | O57: 1224.52 | Q57: 5 | R57: Rio@1604 | S57: RIO | U57: =IF(5 = Q57,#REF! * -1,#REF!) ->  | V57: -173.59 | W57: -528.46 | X57: 0 | Y57: 0 | Z57: -522.47 | AA57: 0 | AB57: 0 | AC57: 0 | AD57: 0 | AE57: 0 | AF57: 0 | AG57: 0 | AH57: -1224.52 | AI57: 1224.52 | AJ57: 0 | AL57: 0 | AM57: 0
A58: 5308 | B58: Pest Control | C58: 197.81 | D58: 105.49 | E58: 91.55 | F58: 0 | G58: 0 | H58: 0 | I58: 0 | J58: 0 | K58: 0 | L58: 0 | M58: 60.52 | N58: 0 | O58: 455.37 | Q58: 5 | R58: Rio@1604 | S58: RIO | U58: =IF(5 = Q58,#REF! * -1,#REF!) ->  | V58: -197.81 | W58: -105.49 | X58: -91.55 | Y58: 0 | Z58: 0 | AA58: 0 | AB58: 0 | AC58: 0 | AD58: 0 | AE58: 0 | AF58: -60.52 | AG58: 0 | AH58: -455.37 | AI58: 455.37 | AJ58: 121.04 | AL58: 242.08 | AM58: 0
B59: General Repairs AND Maintenance Expense | C59: =SUM(C51:C58) -> 2769.97 | D59: 3979.83 | E59: 2153.44 | F59: 2050 | G59: 3848.5 | H59: 2050 | I59: =SUM(I51:I58) -> 2083.56 | J59: 2647.97 | K59: 2050 | L59: 877.68 | M59: 1093.16 | N59: =SUM(N51:N58) -> 850.12 | O59: =SUM(O51:O58) -> 26454.23 | Q59: 5 | R59: =R58 -> Rio@1604 | S59: =S58 -> RIO | T59: =T58 -> 0 | U59: =SUM(U51:U58) ->  | V59: -2769.97 | W59: -3979.83 | X59: -2153.44 | Y59: -2050 | Z59: -3848.5 | AA59: -2050 | AB59: -2083.56 | AC59: -2647.97 | AD59: -2050 | AE59: -877.68 | AF59: -1093.16 | AG59: -850.12 | AH59: -26454.23 | AI59: 26454.23 | AJ59: 19204.98 | AL59: 11283.84 | AM59: 10201.44
A61: Turnover Expense
A62: 5402 | B62: Cleaning | C62: 132.46 | D62: 1987.71 | E62: 510 | F62: 95.2 | G62: 162 | H62: 550 | I62: 93.73 | J62: 250 | K62: 350 | L62: 87.65 | M62: 64.92 | N62: 0 | O62: =SUM(C62:N62) -> 4283.67 | Q62: 5 | R62: Rio@1604 | S62: RIO | U62: =IF(5 = Q62,#REF! * -1,#REF!) ->  | V62: =IF(5 = Q62, C62 * -1, C62) -> -132.46 | W62: =IF(5 = Q62, D62 * -1, D62) -> -1987.71 | X62: =IF(5 = Q62, E62 * -1, E62) -> -510 | Y62: =IF(5 = Q62, F62 * -1, F62) -> -95.2 | Z62: =IF(5 = Q62, G62 * -1, G62) -> -162 | AA62: =IF(5 = Q62, H62 * -1, H62) -> -550 | AB62: =IF(5 = Q62, I62 * -1, I62) -> -93.73 | AC62: =IF(5 = Q62, J62 * -1, J62) -> -250 | AD62: =IF(5 = Q62, K62 * -1, K62) -> -350 | AE62: =IF(5 = Q62, L62 * -1, L62) -> -87.65 | AF62: =IF(5 = Q62, M62 * -1, M62) -> -64.92 | AG62: =IF(5 = Q62, N62 * -1, N62) -> 0 | AH62: =IF(5 = Q62, O62 * -1, O62) -> -4283.67 | AI62: =O62 -> 4283.67 | AJ62: =SUM(I62:N62)*2 -> 1692.6 | AL62: =SUM(L62:N62)*4 -> 610.28 | AM62: =N62*12 -> 0
A63: 5405 | B63: Painting & Wall Repair | C63: 340.47 | D63: 0 | E63: 0 | F63: 185.51 | G63: 535.63 | H63: 0 | I63: 0 | J63: 250 | K63: 0 | L63: 0 | M63: 0 | N63: 440.2 | O63: 1751.81 | Q63: 5 | R63: Rio@1604 | S63: RIO | U63: =IF(5 = Q63,#REF! * -1,#REF!) ->  | V63: =IF(5 = Q63, C63 * -1, C63) -> -340.47 | W63: =IF(5 = Q63, D63 * -1, D63) -> 0 | X63: =IF(5 = Q63, E63 * -1, E63) -> 0 | Y63: =IF(5 = Q63, F63 * -1, F63) -> -185.51 | Z63: =IF(5 = Q63, G63 * -1, G63) -> -535.63 | AA63: =IF(5 = Q63, H63 * -1, H63) -> 0 | AB63: =IF(5 = Q63, I63 * -1, I63) -> 0 | AC63: =IF(5 = Q63, J63 * -1, J63) -> -250 | AD63: =IF(5 = Q63, K63 * -1, K63) -> 0 | AE63: =IF(5 = Q63, L63 * -1, L63) -> 0 | AF63: =IF(5 = Q63, M63 * -1, M63) -> 0 | AG63: =IF(5 = Q63, N63 * -1, N63) -> -440.2 | AH63: =IF(5 = Q63, O63 * -1, O63) -> -1751.81 | AI63: 1751.81 | AJ63: 1380.4 | AL63: 1760.8 | AM63: 5282.4
A64: 5406 | B64: Locks & Keys | C64: 186.1 | D64: 192.99 | E64: 0 | F64: 138.37 | G64: 530.83 | H64: 0 | I64: 0 | J64: 0 | K64: 0 | L64: 255.08 | M64: 167.87 | N64: 0 | O64: 1471.24 | Q64: 5 | R64: Rio@1604 | S64: RIO | U64: =IF(5 = Q64,#REF! * -1,#REF!) ->  | V64: =IF(5 = Q64, C64 * -1, C64) -> -186.1 | W64: =IF(5 = Q64, D64 * -1, D64) -> -192.99 | X64: =IF(5 = Q64, E64 * -1, E64) -> 0 | Y64: =IF(5 = Q64, F64 * -1, F64) -> -138.37 | Z64: =IF(5 = Q64, G64 * -1, G64) -> -530.83 | AA64: =IF(5 = Q64, H64 * -1, H64) -> 0 | AB64: =IF(5 = Q64, I64 * -1, I64) -> 0 | AC64: =IF(5 = Q64, J64 * -1, J64) -> 0 | AD64: =IF(5 = Q64, K64 * -1, K64) -> 0 | AE64: =IF(5 = Q64, L64 * -1, L64) -> -255.08 | AF64: =IF(5 = Q64, M64 * -1, M64) -> -167.87 | AG64: =IF(5 = Q64, N64 * -1, N64) -> 0 | AH64: =IF(5 = Q64, O64 * -1, O64) -> -1471.24 | AI64: 1471.24 | AJ64: 845.9 | AL64: 1691.8 | AM64: 0
A65: 5407 | B65: Contract Services | C65: 0 | D65: 0 | E65: 0 | F65: 0 | G65: 0 | H65: 0 | I65: 0 | J65: 212.07 | K65: 0 | L65: 210.49 | M65: 157.74 | N65: 0 | O65: 580.3 | Q65: 5 | R65: Rio@1604 | S65: RIO | U65: =IF(5 = Q65,#REF! * -1,#REF!) ->  | V65: =IF(5 = Q65, C65 * -1, C65) -> 0 | W65: =IF(5 = Q65, D65 * -1, D65) -> 0 | X65: =IF(5 = Q65, E65 * -1, E65) -> 0 | Y65: =IF(5 = Q65, F65 * -1, F65) -> 0 | Z65: =IF(5 = Q65, G65 * -1, G65) -> 0 | AA65: =IF(5 = Q65, H65 * -1, H65) -> 0 | AB65: =IF(5 = Q65, I65 * -1, I65) -> 0 | AC65: =IF(5 = Q65, J65 * -1, J65) -> -212.07 | AD65: =IF(5 = Q65, K65 * -1, K65) -> 0 | AE65: =IF(5 = Q65, L65 * -1, L65) -> -210.49 | AF65: =IF(5 = Q65, M65 * -1, M65) -> -157.74 | AG65: =IF(5 = Q65, N65 * -1, N65) -> 0 | AH65: =IF(5 = Q65, O65 * -1, O65) -> -580.3 | AI65: 580.3 | AJ65: 1160.6 | AL65: 1472.92 | AM65: 0
B66: Turnover Expense | C66: =SUM(C62:C65) -> 659.03 | D66: =SUM(D62:D65) -> 2180.7 | E66: 510 | F66: 419.08 | G66: 1228.46 | H66: 550 | I66: 93.73 | J66: 712.07 | K66: 350 | L66: 553.22 | M66: 390.53 | N66: =SUM(N62:N65) -> 440.2 | O66: 8087.02 | Q66: 5 | R66: =R65 -> Rio@1604 | S66: =S65 -> RIO | T66: =T65 -> 0 | U66: =SUM(U62:U65) ->  | V66: -659.03 | W66: -2180.7 | X66: -510 | Y66: -419.08 | Z66: -1228.46 | AA66: -550 | AB66: -93.73 | AC66: -712.07 | AD66: -350 | AE66: -553.22 | AF66: -390.53 | AG66: -440.2 | AH66: -8087.02 | AI66: 8087.02 | AJ66: 5079.5 | AL66: 5535.8 | AM66: 5282.4
A68: Administrative Expense
A69: 5501 | B69: Utility Billing Expense | C69: 492.49 | D69: 492.49 | E69: 492.49 | F69: 492.49 | G69: 492.49 | H69: 492.49 | I69: 492.49 | J69: 492.49 | K69: 492.49 | L69: 492.49 | M69: 492.49 | N69: 492.49 | O69: =SUM(C69:N69) -> 5909.88 | Q69: 5 | R69: Rio@1604 | S69: RIO | U69: =IF(5 = Q69,#REF! * -1,#REF!) ->  | V69: =IF(5 = Q69, C69 * -1, C69) -> -492.49 | W69: =IF(5 = Q69, D69 * -1, D69) -> -492.49 | X69: =IF(5 = Q69, E69 * -1, E69) -> -492.49 | Y69: =IF(5 = Q69, F69 * -1, F69) -> -492.49 | Z69: =IF(5 = Q69, G69 * -1, G69) -> -492.49 | AA69: =IF(5 = Q69, H69 * -1, H69) -> -492.49 | AB69: =IF(5 = Q69, I69 * -1, I69) -> -492.49 | AC69: =IF(5 = Q69, J69 * -1, J69) -> -492.49 | AD69: =IF(5 = Q69, K69 * -1, K69) -> -492.49 | AE69: =IF(5 = Q69, L69 * -1, L69) -> -492.49 | AF69: =IF(5 = Q69, M69 * -1, M69) -> -492.49 | AG69: =IF(5 = Q69, N69 * -1, N69) -> -492.49 | AH69: =IF(5 = Q69, O69 * -1, O69) -> -5909.88 | AI69: =O69 -> 5909.88 | AJ69: =SUM(I69:N69)*2 -> 5909.88 | AL69: =SUM(L69:N69)*4 -> 5909.88 | AM69: =N69*12 -> 5909.88
A70: 5502 | B70: Bulk Cable & Internet Contract | C70: 6700 | D70: 6700 | E70: 6700 | F70: 6700 | G70: 6700 | H70: 6700 | I70: 7031.4 | J70: 7031.4 | K70: 7031.4 | L70: 7031.4 | M70: 7031.4 | N70: 7031.4 | O70: 82388.4 | Q70: 5 | R70: Rio@1604 | S70: RIO | U70: =IF(5 = Q70,#REF! * -1,#REF!) ->  | V70: -6700 | W70: -6700 | X70: -6700 | Y70: -6700 | Z70: -6700 | AA70: -6700 | AB70: -7031.4 | AC70: -7031.4 | AD70: -7031.4 | AE70: -7031.4 | AF70: -7031.4 | AG70: -7031.4 | AH70: -82388.4 | AI70: 82388.4 | AJ70: 84376.8 | AL70: 84376.8 | AM70: 84376.8
A71: 5503 | B71: Software Expense | C71: 911.13 | D71: 467.88 | E71: 383.1 | F71: 669.3 | G71: 742.14 | H71: 189.7 | I71: 134.25 | J71: 204.3 | K71: 990 | L71: 990 | M71: 990 | N71: 957 | O71: 7628.8 | Q71: 5 | R71: Rio@1604 | S71: RIO | U71: =IF(5 = Q71,#REF! * -1,#REF!) ->  | V71: -911.13 | W71: -467.88 | X71: -383.1 | Y71: -669.3 | Z71: -742.14 | AA71: -189.7 | AB71: -134.25 | AC71: -204.3 | AD71: -990 | AE71: -990 | AF71: -990 | AG71: -957 | AH71: -7628.8 | AI71: 7628.8 | AJ71: 8531.1 | AL71: 11748 | AM71: 11484
A72: 5506 | B72: Office Supplies | C72: 59.11 | D72: 97.1 | E72: 147.47 | F72: 0 | G72: 126.21 | H72: 505.84 | I72: 0 | J72: 120.6 | K72: 0 | L72: 0 | M72: 0 | N72: 0 | O72: 1056.33 | Q72: 5 | R72: Rio@1604 | S72: RIO | U72: =IF(5 = Q72,#REF! * -1,#REF!) ->  | V72: -59.11 | W72: -97.1 | X72: -147.47 | Y72: 0 | Z72: -126.21 | AA72: -505.84 | AB72: 0 | AC72: -120.6 | AD72: 0 | AE72: 0 | AF72: 0 | AG72: 0 | AH72: -1056.33 | AI72: 1056.33 | AJ72: 241.2 | AL72: 0 | AM72: 0
A73: 5507 | B73: Renter's Liability Insurance | C73: 839.42 | D73: 839.42 | E73: 839.42 | F73: 839.42 | G73: 850 | H73: 850 | I73: 850 | J73: 850 | K73: 849.25 | L73: 794.25 | M73: 832.26 | N73: 855.2 | O73: 10088.64 | Q73: 5 | R73: Rio@1604 | S73: RIO | U73: =IF(5 = Q73,#REF! * -1,#REF!) ->  | V73: -839.42 | W73: -839.42 | X73: -839.42 | Y73: -839.42 | Z73: -850 | AA73: -850 | AB73: -850 | AC73: -850 | AD73: -849.25 | AE73: -794.25 | AF73: -832.26 | AG73: -855.2 | AH73: -10088.64 | AI73: 10088.64 | AJ73: 10061.92 | AL73: 9926.84 | AM73: 10262.4
A74: 5510 | B74: Printer & Copier | C74: 120.01 | D74: 120.01 | E74: 120.01 | F74: 120.01 | G74: 120.01 | H74: 120.01 | I74: 120.01 | J74: 120.01 | K74: 120.01 | L74: 120.01 | M74: 120.01 | N74: 187.33 | O74: 1507.44 | Q74: 5 | R74: Rio@1604 | S74: RIO | U74: =IF(5 = Q74,#REF! * -1,#REF!) ->  | V74: -120.01 | W74: -120.01 | X74: -120.01 | Y74: -120.01 | Z74: -120.01 | AA74: -120.01 | AB74: -120.01 | AC74: -120.01 | AD74: -120.01 | AE74: -120.01 | AF74: -120.01 | AG74: -187.33 | AH74: -1507.44 | AI74: 1507.44 | AJ74: 1574.76 | AL74: 1709.4 | AM74: 2247.96
A75: 5599 | B75: Other Administrative Expenses | C75: 627 | D75: 0 | E75: 594 | F75: 0 | G75: 0 | H75: 0 | I75: 0 | J75: 0 | K75: 0 | L75: 0 | M75: 0 | N75: 0 | O75: 1221 | Q75: 5 | R75: Rio@1604 | S75: RIO | U75: =IF(5 = Q75,#REF! * -1,#REF!) ->  | V75: -627 | W75: 0 | X75: -594 | Y75: 0 | Z75: 0 | AA75: 0 | AB75: 0 | AC75: 0 | AD75: 0 | AE75: 0 | AF75: 0 | AG75: 0 | AH75: -1221 | AI75: 1221 | AJ75: 0 | AL75: 0 | AM75: 0
B76: Administrative Expense | C76: =SUM(C69:C75) -> 9749.16 | D76: 8716.9 | E76: 9276.49 | F76: 8821.22 | G76: 9030.85 | H76: 8858.04 | I76: =SUM(I69:I75) -> 8628.15 | J76: 8818.8 | K76: 9483.15 | L76: 9428.15 | M76: 9466.16 | N76: =SUM(N69:N75) -> 9523.42 | O76: 109800.49 | Q76: 5 | R76: =R75 -> Rio@1604 | S76: =S75 -> RIO | T76: =T75 -> 0 | U76: =SUM(U69:U75) ->  | V76: -9749.16 | W76: -8716.9 | X76: -9276.49 | Y76: -8821.22 | Z76: -9030.85 | AA76: -8858.04 | AB76: -8628.15 | AC76: -8818.8 | AD76: -9483.15 | AE76: -9428.15 | AF76: -9466.16 | AG76: -9523.42 | AH76: -109800.49 | AI76: 109800.49 | AJ76: 110695.66 | AL76: 113670.92 | AM76: 114281.04
A78: Advertising AND Marketing Expense
A79: 5601 | B79: Online Leasing & Advertising | C79: 2486 | D79: 2635.23 | E79: 2145 | F79: 1908 | G79: 3116 | H79: 3116 | I79: 2486 | J79: 2486 | K79: 2486 | L79: 2486 | M79: 1296 | N79: 1296 | O79: =SUM(C79:N79) -> 27942.23 | Q79: 5 | R79: Rio@1604 | S79: RIO | U79: =IF(5 = Q79,#REF! * -1,#REF!) ->  | V79: =IF(5 = Q79, C79 * -1, C79) -> -2486 | W79: =IF(5 = Q79, D79 * -1, D79) -> -2635.23 | X79: =IF(5 = Q79, E79 * -1, E79) -> -2145 | Y79: =IF(5 = Q79, F79 * -1, F79) -> -1908 | Z79: =IF(5 = Q79, G79 * -1, G79) -> -3116 | AA79: =IF(5 = Q79, H79 * -1, H79) -> -3116 | AB79: =IF(5 = Q79, I79 * -1, I79) -> -2486 | AC79: =IF(5 = Q79, J79 * -1, J79) -> -2486 | AD79: =IF(5 = Q79, K79 * -1, K79) -> -2486 | AE79: =IF(5 = Q79, L79 * -1, L79) -> -2486 | AF79: =IF(5 = Q79, M79 * -1, M79) -> -1296 | AG79: =IF(5 = Q79, N79 * -1, N79) -> -1296 | AH79: =IF(5 = Q79, O79 * -1, O79) -> -27942.23 | AI79: =O79 -> 27942.23 | AJ79: =SUM(I79:N79)*2 -> 25072 | AL79: =SUM(L79:N79)*4 -> 20312 | AM79: =N79*12 -> 15552
A80: 5605 | B80: Resident Events | C80: 0 | D80: 0 | E80: 0 | F80: 0 | G80: 0 | H80: 0 | I80: 0 | J80: 0 | K80: 0 | L80: 0 | M80: 0 | N80: 0 | O80: =SUM(C80:N80) -> 0 | Q80: 5 | R80: Rio@1604 | S80: RIO | U80: =IF(5 = Q80,#REF! * -1,#REF!) ->  | V80: =IF(5 = Q80, C80 * -1, C80) -> 0 | W80: =IF(5 = Q80, D80 * -1, D80) -> 0 | X80: =IF(5 = Q80, E80 * -1, E80) -> 0 | Y80: =IF(5 = Q80, F80 * -1, F80) -> 0 | Z80: =IF(5 = Q80, G80 * -1, G80) -> 0 | AA80: =IF(5 = Q80, H80 * -1, H80) -> 0 | AB80: =IF(5 = Q80, I80 * -1, I80) -> 0 | AC80: =IF(5 = Q80, J80 * -1, J80) -> 0 | AD80: =IF(5 = Q80, K80 * -1, K80) -> 0 | AE80: =IF(5 = Q80, L80 * -1, L80) -> 0 | AF80: =IF(5 = Q80, M80 * -1, M80) -> 0 | AG80: =IF(5 = Q80, N80 * -1, N80) -> 0 | AH80: =IF(5 = Q80, O80 * -1, O80) -> 0 | AI80: 0 | AJ80: =SUM(I80:N80)*2 -> 0 | AL80: =SUM(L80:N80)*4 -> 0 | AM80: =N80*12 -> 0
B81: Advertising AND Marketing Expense | C81: =SUM(C79:C80) -> 2486 | D81: 2635.23 | E81: 2145 | F81: 1908 | G81: 3116 | H81: 3116 | I81: =SUM(I79:I80) -> 2486 | J81: =SUM(J79:J80) -> 2486 | K81: =SUM(K79:K80) -> 2486 | L81: =SUM(L79:L80) -> 2486 | M81: =SUM(M79:M80) -> 1296 | N81: =SUM(N79:N80) -> 1296 | O81: =SUM(O79:O80) -> 27942.23 | Q81: 5 | R81: =R80 -> Rio@1604 | S81: =S80 -> RIO | T81: =T80 -> 0 | U81: =SUM(U79:U80) ->  | V81: -2486 | W81: -2635.23 | X81: -2145 | Y81: -1908 | Z81: -3116 | AA81: -3116 | AB81: -2486 | AC81: -2486 | AD81: -2486 | AE81: -2486 | AF81: -1296 | AG81: -1296 | AH81: -27942.23 | AI81: 27942.23 | AJ81: 25072 | AL81: =SUM(L81:N81)*4 -> 20312 | AM81: =N81*12 -> 15552
A83: Management Fees
A84: 5701 | B84: Management Fee Expense | C84: 4257.99 | D84: 4764.99 | E84: 4513.94 | F84: 4616.1 | G84: 5264 | H84: 5158.35 | I84: 5136.06 | J84: 4695.91 | K84: 5329.43 | L84: 5329.43 | M84: 5329.43 | N84: 5603.57 | O84: =SUM(C84:N84) -> 59999.2 | Q84: 5 | R84: Rio@1604 | S84: RIO | U84: =IF(5 = Q84,#REF! * -1,#REF!) ->  | V84: =IF(5 = Q84, C84 * -1, C84) -> -4257.99 | W84: =IF(5 = Q84, D84 * -1, D84) -> -4764.99 | X84: =IF(5 = Q84, E84 * -1, E84) -> -4513.94 | Y84: =IF(5 = Q84, F84 * -1, F84) -> -4616.1 | Z84: =IF(5 = Q84, G84 * -1, G84) -> -5264 | AA84: =IF(5 = Q84, H84 * -1, H84) -> -5158.35 | AB84: =IF(5 = Q84, I84 * -1, I84) -> -5136.06 | AC84: =IF(5 = Q84, J84 * -1, J84) -> -4695.91 | AD84: =IF(5 = Q84, K84 * -1, K84) -> -5329.43 | AE84: =IF(5 = Q84, L84 * -1, L84) -> -5329.43 | AF84: =IF(5 = Q84, M84 * -1, M84) -> -5329.43 | AG84: =IF(5 = Q84, N84 * -1, N84) -> -5603.57 | AH84: =IF(5 = Q84, O84 * -1, O84) -> -59999.2 | AI84: =O84 -> 59999.2 | AJ84: =SUM(I84:N84)*2 -> 62847.66 | AL84: =SUM(L84:N84)*4 -> 65049.72 | AM84: =N84*12 -> 67242.84
B85: Management Fees | C85: =C84 -> 4257.99 | D85: 4764.99 | E85: 4513.94 | F85: 4616.1 | G85: 5264 | H85: 5158.35 | I85: 5136.06 | J85: =J84 -> 4695.91 | K85: 5329.43 | L85: 5329.43 | M85: =M84 -> 5329.43 | N85: 5603.57 | O85: 59999.2 | Q85: 5 | R85: =R84 -> Rio@1604 | S85: =S84 -> RIO | T85: =T84 -> 0 | U85: =SUM(U84:U84) ->  | V85: -4257.99 | W85: -4764.99 | X85: -4513.94 | Y85: -4616.1 | Z85: -5264 | AA85: -5158.35 | AB85: -5136.06 | AC85: -4695.91 | AD85: -5329.43 | AE85: -5329.43 | AF85: -5329.43 | AG85: -5603.57 | AH85: -59999.2 | AI85: 59999.2 | AJ85: 62847.66 | AL85: 65049.72 | AM85: 67242.84
A87: Insurance Expense
A88: 5801 | B88: Property Insurance | C88: 10128.11 | D88: 10128.11 | E88: 10128.11 | F88: 10128.11 | G88: 10128.11 | H88: 10128.11 | I88: 10128.11 | J88: 10128.11 | K88: 10128.11 | L88: 10128.11 | M88: 10128.11 | N88: 10128.11 | O88: =SUM(C88:N88) -> 121537.32 | Q88: 5 | R88: Rio@1604 | S88: RIO | U88: =IF(5 = Q88,#REF! * -1,#REF!) ->  | V88: =IF(5 = Q88, C88 * -1, C88) -> -10128.11 | W88: =IF(5 = Q88, D88 * -1, D88) -> -10128.11 | X88: =IF(5 = Q88, E88 * -1, E88) -> -10128.11 | Y88: =IF(5 = Q88, F88 * -1, F88) -> -10128.11 | Z88: =IF(5 = Q88, G88 * -1, G88) -> -10128.11 | AA88: =IF(5 = Q88, H88 * -1, H88) -> -10128.11 | AB88: =IF(5 = Q88, I88 * -1, I88) -> -10128.11 | AC88: =IF(5 = Q88, J88 * -1, J88) -> -10128.11 | AD88: =IF(5 = Q88, K88 * -1, K88) -> -10128.11 | AE88: =IF(5 = Q88, L88 * -1, L88) -> -10128.11 | AF88: =IF(5 = Q88, M88 * -1, M88) -> -10128.11 | AG88: =IF(5 = Q88, N88 * -1, N88) -> -10128.11 | AH88: =IF(5 = Q88, O88 * -1, O88) -> -121537.32 | AI88: =O88 -> 121537.32 | AJ88: =SUM(I88:N88)*2 -> 121537.32 | AL88: =SUM(L88:N88)*4 -> 121537.32 | AM88: =N88*12 -> 121537.32
B89: Insurance Expense | C89: =C88 -> 10128.11 | D89: 10128.11 | E89: 10128.11 | F89: 10128.11 | G89: 10128.11 | H89: 10128.11 | I89: 10128.11 | J89: =J88 -> 10128.11 | K89: 10128.11 | L89: 10128.11 | M89: =M88 -> 10128.11 | N89: 10128.11 | O89: 121537.32 | Q89: 5 | R89: =R88 -> Rio@1604 | S89: =S88 -> RIO | T89: =T88 -> 0 | U89: =SUM(U88:U88) ->  | V89: -10128.11 | W89: -10128.11 | X89: -10128.11 | Y89: -10128.11 | Z89: -10128.11 | AA89: -10128.11 | AB89: -10128.11 | AC89: -10128.11 | AD89: -10128.11 | AE89: -10128.11 | AF89: -10128.11 | AG89: -10128.11 | AH89: -121537.32 | AI89: 121537.32 | AJ89: 121537.32 | AL89: 121537.32 | AM89: 121537.32
A91: Property Tax Expense
A92: 5901 | B92: Property Tax | C92: 26926.255 | D92: 26926.255 | E92: 26926.255 | F92: 26926.255 | G92: 26926.255 | H92: 26926.255 | I92: 26926.255 | J92: 26926.255 | K92: 26926.255 | L92: 26926.255 | M92: 26926.255 | N92: 26926.255 | O92: =SUM(C92:N92) -> 323115.06 | Q92: 5 | R92: Rio@1604 | S92: RIO | U92: =IF(5 = Q92,#REF! * -1,#REF!) ->  | V92: =IF(5 = Q92, C92 * -1, C92) -> -26926.255 | W92: =IF(5 = Q92, D92 * -1, D92) -> -26926.255 | X92: =IF(5 = Q92, E92 * -1, E92) -> -26926.255 | Y92: =IF(5 = Q92, F92 * -1, F92) -> -26926.255 | Z92: =IF(5 = Q92, G92 * -1, G92) -> -26926.255 | AA92: =IF(5 = Q92, H92 * -1, H92) -> -26926.255 | AB92: =IF(5 = Q92, I92 * -1, I92) -> -26926.255 | AC92: =IF(5 = Q92, J92 * -1, J92) -> -26926.255 | AD92: =IF(5 = Q92, K92 * -1, K92) -> -26926.255 | AE92: =IF(5 = Q92, L92 * -1, L92) -> -26926.255 | AF92: =IF(5 = Q92, M92 * -1, M92) -> -26926.255 | AG92: =IF(5 = Q92, N92 * -1, N92) -> -26926.255 | AH92: =IF(5 = Q92, O92 * -1, O92) -> -323115.06 | AI92: =O92 -> 323115.06 | AJ92: =SUM(I92:N92)*2 -> 323115.06 | AL92: =SUM(L92:N92)*4 -> 323115.06 | AM92: =N92*12 -> 323115.06
B93: Property Tax Expense | C93: =C92 -> 26926.255 | D93: 26926.255 | E93: 26926.255 | F93: 26926.255 | G93: 26926.255 | H93: 26926.255 | I93: 26926.255 | J93: 26926.255 | K93: 26926.255 | L93: 26926.255 | M93: =M92 -> 26926.255 | N93: 26926.255 | O93: 323115.06 | Q93: 5 | R93: =R92 -> Rio@1604 | S93: =S92 -> RIO | T93: =T92 -> 0 | U93: =SUM(U92:U92) ->  | V93: -26926.255 | W93: -26926.255 | X93: -26926.255 | Y93: -26926.255 | Z93: -26926.255 | AA93: -26926.255 | AB93: -26926.255 | AC93: -26926.255 | AD93: -26926.255 | AE93: -26926.255 | AF93: -26926.255 | AG93: -26926.255 | AH93: -323115.06 | AI93: 323115.06 | AJ93: 323115.06 | AL93: 323115.06 | AM93: 323115.06
B95: Operating Expenses | C95: =SUM(C93,C89,C85,C81,C76,C66,C59,C48,C42) -> 85519.83832 | D95: 89563.8 | E95: 85801.615 | F95: 85974.575 | G95: 92742.385 | H95: 89868.215 | I95: 88185.908 | J95: 89020.368 | K95: 89373.41233 | L95: 92300.135 | M95: =SUM(M93,M89,M85,M81,M76,M66,M59,M48,M42) -> 87658.135 | N95: 90347.5225 | O95: 1066355.909 | Q95: 5 | R95: =R92 -> Rio@1604 | S95: =S92 -> RIO | T95: =T92 -> 0 | U95: =SUM(U38:U41)+SUM(U45:U47)+SUM(U51:U58)+SUM(U62:U65)+SUM(U69:U75)+SUM(U79:U80)+SUM(U84:U84)+SUM(U88:U88)+SUM(U92:U92) ->  | V95: -85519.83832 | W95: -89563.8 | X95: -85801.615 | Y95: -85974.575 | Z95: -92742.385 | AA95: -89868.215 | AB95: -88185.908 | AC95: -89020.368 | AD95: -89373.41233 | AE95: -92300.135 | AF95: -87658.135 | AG95: -90347.5225 | AH95: -1066355.909 | AI95: =O95 -> 1066355.909 | AJ95: =SUM(I95:N95)*2 -> 1073770.962 | AL95: =SUM(L95:N95)*4 -> 1081223.17 | AM95: =N95*12 -> 1084170.27
B97: Net Operating Income | C97: =C34-C95 -> 90921.19168 | D97: 86097.37 | E97: 83710.315 | F97: 94363.375 | G97: 92389.575 | H97: 98993.505 | I97: 96179.232 | J97: 83543.812 | K97: 90657.08767 | L97: 79578.475 | M97: 94891.325 | N97: 96438.1875 | O97: 1087763.451 | Q97: 4 | R97: =R92 -> Rio@1604 | S97: =S92 -> RIO | T97: =T92 -> 0 | U97: =SUM(U8:U11)+SUM(U15:U31)+SUM(U38:U41)+SUM(U45:U47)+SUM(U51:U58)+SUM(U62:U65)+SUM(U69:U75)+SUM(U79:U80)+SUM(U84:U84)+SUM(U88:U88)+SUM(U92:U92) ->  | V97: 90921.19168 | W97: 86097.37 | X97: 83710.315 | Y97: 94363.375 | Z97: 92389.575 | AA97: 98993.505 | AB97: 96179.232 | AC97: 83543.812 | AD97: 90657.08767 | AE97: 79578.475 | AF97: 94891.325 | AG97: 96438.1875 | AH97: 1087763.451 | AI97: =O97 -> 1087763.451 | AJ97: =SUM(I97:N97)*2 -> 1082576.238 | AL97: =SUM(L97:N97)*4 -> 1083631.95 | AM97: =N97*12 -> 1157258.25
